fUST/lending_fUST_20250122
["ID","MTS","AMOUNT","RATE_DAILY","PERIOD"]
[349904834,1737489033887,-610.78492585,0.00021917,3]
[349904836,1737489033896,-500.0,0.00021917,3]
[349904838,1737489033905,-500.0,0.00021917,3]
[349904839,1737489033915,-500.0,0.00021917,3]
[349904842,1737489033926,-500.0,0.00021917,3]
[349904843,1737489033936,-500.76880027,0.00021917,3]
[349904846,1737489033946,-481.49126444,0.00021917,3]
[349904848,1737489033956,-500.0,0.00021917,3]
[349904849,1737489033967,-503.26640427,0.00021917,3]
[349904851,1737489033978,-547.95570331,0.00021917,3]
[349904853,1737489033987,-500.0,0.00021917,3]
[349904855,1737489033997,-500.0,0.00021917,3]
[349904858,1737489034010,-500.0,0.00021917,3]
[349904860,1737489034020,-500.0,0.00021917,3]
[349904862,1737489034029,-500.0,0.00021917,3]
[349904864,1737489034039,-500.0,0.00021917,3]
[349904866,1737489034048,-500.0,0.00021917,3]
[349904868,1737489034058,-555.3251714,0.00021917,3]
[349904870,1737489034067,-500.0,0.00021917,3]
[349904872,1737489034076,-500.0,0.00021917,3]
[349904874,1737489034086,-500.0,0.00021917,3]
[349904876,1737489034096,-500.0,0.00021917,3]
[349904878,1737489034105,-614.32431529,0.00021917,3]
[349904880,1737489034115,-382.63498747,0.00021917,3]
[349904882,1737489034125,-500.0,0.00021917,3]
[349904884,1737489034135,-501.79525196,0.00021917,3]
[349904886,1737489034144,-501.67666518,0.00021917,3]
[349904888,1737489034154,-500.0,0.00021917,3]
[349904890,1737489034164,-500.0,0.00021917,3]
[349904892,1737489034175,-501.73151904,0.00021917,3]
[349904894,1737489034186,-502.03087605,0.00021917,3]
[349904896,1737489034195,-500.0,0.00021917,3]
[349904898,1737489034205,-500.0,0.00021917,3]
[349904900,1737489034216,-500.0,0.00021917,3]
[349904902,1737489034226,-500.0,0.00021917,3]
[349904904,1737489034236,-500.0,0.00021917,3]
[349904906,1737489034246,-500.0,0.00021917,3]
[349904908,1737489034255,-500.0,0.00021917,3]
[349904910,1737489034266,-500.0,0.00021917,3]
[349904912,1737489034276,-591.37,0.00021917,3]
[349904914,1737489034286,-500.0,0.00021917,3]
[349904916,1737489034296,-500.0,0.00021917,3]
[349904918,1737489034304,-500.0,0.00021917,3]
[349904920,1737489034313,-500.0,0.00021917,3]
[349904922,1737489034322,-500.0,0.00021917,3]
[349904924,1737489034331,-500.0,0.00021917,3]
[349904926,1737489034341,-501.88830163,0.00021917,3]
[349904928,1737489034350,-500.0,0.00021917,3]
[349904931,1737489034360,-500.0,0.00021917,3]
[349904933,1737489034370,-500.0,0.00021917,3]
[349904935,1737489034380,-1038.88,0.00021917,3]
[349904937,1737489034389,-500.0,0.00021917,3]
[349904939,1737489034399,-500.0,0.00021917,3]
[349904941,1737489034408,-500.0,0.00021917,3]
[349904943,1737489034418,-500.0,0.00021917,3]
[349904944,1737489034427,-500.0,0.00021917,3]
[349904946,1737489034437,-500.0,0.00021917,3]
[349904959,1737489034547,-500.0,0.00021917,3]
[349904961,1737489034557,-500.0,0.00021917,3]
[349904963,1737489034567,-500.0,0.00021917,3]
[349904965,1737489034577,-500.0,0.00021917,3]
[349904967,1737489034587,-515.28936832,0.00021917,3]
[349904969,1737489034597,-500.0,0.00021917,3]
[349904971,1737489034606,-500.0,0.00021917,3]
[349904973,1737489034616,-500.0,0.00021917,3]
[349904975,1737489034625,-500.0,0.00021917,3]
[349904977,1737489034636,-500.0,0.00021917,3]
[349904979,1737489034645,-500.0,0.00021917,3]
[349904981,1737489034655,-500.0,0.00021917,3]
[349904983,1737489034664,-500.0,0.00021917,3]
[349904985,1737489034674,-500.0,0.00021917,3]
[349904987,1737489034683,-500.0,0.00021917,3]
[349904989,1737489034693,-500.0,0.00021917,3]
[349904992,1737489034703,-500.0,0.00021917,3]
[349904994,1737489034714,-500.0,0.00021917,3]
[349904996,1737489034723,-500.0,0.00021917,3]
[349904998,1737489034734,-500.0,0.00021917,3]
[349905000,1737489034743,-500.0,0.00021917,3]
[349905002,1737489034753,-500.0,0.00021917,3]
[349905004,1737489034763,-500.0,0.00021917,3]
[349905006,1737489034774,-507.04,0.00021917,3]
[349905008,1737489034785,-500.0,0.00021917,3]
[349905010,1737489034795,-500.0,0.00021917,3]
[349905012,1737489034805,-500.0,0.00021917,3]
[349905014,1737489034813,-501.48261023,0.00021917,3]
[349905016,1737489034823,-500.0,0.00021917,3]
[349905018,1737489034833,-500.0,0.00021917,3]
[349905020,1737489034843,-500.0,0.00021917,3]
[349905022,1737489034852,-500.0,0.00021917,3]
[349905024,1737489034862,-500.0,0.00021917,3]
[349905026,1737489034873,-500.92272801,0.00021917,3]
[349905028,1737489034885,-502.53148515,0.00021917,3]
[349905030,1737489034895,-500.0,0.00021917,3]
[349905032,1737489034904,-500.0,0.00021917,3]
[349905034,1737489034914,-500.0,0.00021917,3]
[349905036,1737489034924,-500.0,0.00021917,3]
[349905038,1737489034933,-671.98,0.00021917,3]
[349905040,1737489034943,-500.0,0.00021917,3]
[349905042,1737489034952,-500.0,0.00021917,3]
[349905045,1737489034964,-500.0,0.00021917,3]
[349905047,1737489034974,-500.0,0.00021917,3]
[349905049,1737489034983,-500.0,0.00021917,3]
[349905051,1737489034992,-502.00931731,0.00021917,3]
[349905053,1737489035002,-500.0,0.00021917,3]
[349905055,1737489035011,-500.0,0.00021917,3]
[349905057,1737489035020,-502.72003978,0.00021917,3]
[349905059,1737489035030,-548.82713053,0.00021917,3]
[349905061,1737489035040,-500.0,0.00021917,3]
[349905063,1737489035049,-500.0,0.00021917,3]
[349905065,1737489035058,-500.0,0.00021917,3]
[349905067,1737489035067,-500.0,0.00021917,3]
[349905069,1737489035077,-500.0,0.00021917,3]
[349905071,1737489035086,-500.0,0.00021917,3]
[349905072,1737489035097,-173.60296419,0.00021917,3]
[349905090,1737489035260,-326.39703581,0.00021917,3]
[349905091,1737489035269,-502.07898297,0.00021917,3]
[349905092,1737489035279,-500.0,0.00021917,3]
[349905093,1737489035289,-501.63897628,0.00021917,3]
[349905094,1737489035298,-500.0,0.00021917,3]
[349905096,1737489035308,-500.0,0.00021917,3]
[349905098,1737489035317,-801.03,0.00021917,3]
[349905100,1737489035328,-500.0,0.00021917,3]
[349905101,1737489035337,-500.0,0.00021917,3]
[349905102,1737489035347,-508.57539382,0.00021917,3]
[349905103,1737489035356,-608.47,0.00021917,3]
[349905104,1737489035365,-500.0,0.00021917,3]
[349905105,1737489035375,-500.0,0.00021917,3]
[349905106,1737489035385,-500.0,0.00021917,3]
[349905107,1737489035395,-500.0,0.00021917,3]
[349905108,1737489035404,-500.0,0.00021917,3]
[349905109,1737489035414,-500.0,0.00021917,3]
[349905110,1737489035424,-500.0,0.00021917,3]
[349905111,1737489035434,-500.0,0.00021917,3]
[349905112,1737489035443,-500.0,0.00021917,3]
[349905113,1737489035453,-500.0,0.00021917,3]
[349905114,1737489035462,-555.14470569,0.00021917,3]
[349905115,1737489035471,-500.0,0.00021917,3]
[349905116,1737489035481,-500.0,0.00021917,3]
[349905117,1737489035491,-230.87576062,0.00021917,3]
[349905118,1737489035501,-500.0,0.00021917,3]
[349905119,1737489035511,-501.84386738,0.00021917,3]
[349905120,1737489035520,-506.59686885,0.00021917,3]
[349905121,1737489035531,-500.0,0.00021917,3]
[349905122,1737489035541,-315.04388193,0.00021917,3]
[349905201,1737489038281,-395.0,0.00021463,2]
[349905203,1737489038291,-110.35528582,0.00021917,3]
[349905205,1737489038308,-79.7940405,0.00021917,3]
[349905207,1737489038318,-500.0,0.00021917,3]
[349905209,1737489038327,-500.0,0.00021917,3]
[349905211,1737489038337,-503.78527895,0.00021917,3]
[349905214,1737489038346,-500.0,0.00021917,3]
[349905215,1737489038356,-500.0,0.00021917,3]
[349905217,1737489038365,-500.0,0.00021917,3]
[349905219,1737489038374,-500.0,0.00021917,3]
[349905221,1737489038383,-500.0,0.00021917,3]
[349905223,1737489038393,-917.98,0.00021917,3]
[349905225,1737489038402,-500.0,0.00021917,3]
[349905227,1737489038412,-500.0,0.00021917,3]
[349905230,1737489038422,-500.0,0.00021917,3]
[349905232,1737489038432,-500.0,0.00021917,3]
[349905233,1737489038441,-500.0,0.00021917,3]
[349905235,1737489038452,-502.61169903,0.00021917,3]
[349905238,1737489038461,-500.0,0.00021917,3]
[349905239,1737489038472,-294.52321922,0.00021917,3]
[349905241,1737489038481,-56.36729416,0.00021917,3]
[349905244,1737489038493,-443.63270584,0.00021917,3]
[349905246,1737489038504,-500.0,0.00021917,3]
[349905248,1737489038513,-500.0,0.00021917,3]
[349905250,1737489038522,-501.56384328,0.00021917,3]
[349905252,1737489038532,-500.0,0.00021917,3]
[349905254,1737489038541,-500.0,0.00021917,3]
[349905256,1737489038551,-551.73,0.00021917,3]
[349905258,1737489038561,-500.0,0.00021917,3]
[349905260,1737489038570,-500.0,0.00021917,3]
[349905262,1737489038579,-500.0,0.00021917,3]
[349905264,1737489038589,-500.66026076,0.00021917,3]
[349905266,1737489038599,-500.0,0.00021917,3]
[349905268,1737489038608,-502.93943286,0.00021917,3]
[349905270,1737489038617,-500.0,0.00021917,3]
[349905272,1737489038627,-500.0,0.00021917,3]
[349905274,1737489038635,-500.0,0.00021917,3]
[349905276,1737489038645,-500.0,0.00021917,3]
[349905278,1737489038654,-1263.45,0.00021917,3]
[349905280,1737489038663,-500.0,0.00021917,3]
[349905282,1737489038673,-501.47754384,0.00021917,3]
[349905284,1737489038682,-500.0,0.00021917,3]
[349905285,1737489038691,-500.0,0.00021917,3]
[349905287,1737489038701,-500.0,0.00021917,3]
[349905289,1737489038710,-500.0,0.00021917,3]
[349905291,1737489038723,-315.11775323,0.00021917,3]
[349905293,1737489038733,-500.0,0.00021917,3]
[349905296,1737489038743,-500.0,0.00021917,3]
[349905298,1737489038752,-500.0,0.00021917,3]
[349905299,1737489038761,-500.0,0.00021917,3]
[349905301,1737489038770,-500.0,0.00021917,3]
[349905303,1737489038780,-500.0,0.00021917,3]
[349905304,1737489038790,-500.0,0.00021917,3]
[349905305,1737489038800,-433.81,0.00021917,3]
[349905306,1737489038810,-500.0,0.00021917,3]
[349905308,1737489038819,-1183.77,0.00021917,3]
[349905309,1737489038828,-500.0,0.00021917,3]
[349905310,1737489038838,-500.0,0.00021917,3]
[349905312,1737489038847,-500.0,0.00021917,3]
[349905314,1737489038857,-504.03107627,0.00021917,3]
[349905316,1737489038868,-200.30241972,0.00021917,3]
[349905318,1737489038882,-308.53507303,0.00021917,3]
[349905320,1737489038892,-500.0,0.00021917,3]
[349905322,1737489038901,-500.0,0.00021917,3]
[349905324,1737489038911,-500.0,0.00021917,3]
[349905326,1737489038920,-500.0,0.00021917,3]
[349905328,1737489038930,-677.63,0.00021917,3]
[349905330,1737489038939,-1109.77,0.00021917,3]
[349905332,1737489038950,-500.0,0.00021917,3]
[349905334,1737489038959,-500.0,0.00021917,3]
[349905336,1737489038970,-500.0,0.00021917,3]
[349905338,1737489038980,-500.0,0.00021917,3]
[349905340,1737489038989,-500.0,0.00021917,3]
[349905342,1737489038999,-500.0,0.00021917,3]
[349905344,1737489039009,-500.0,0.00021917,3]
[349905346,1737489039019,-500.0,0.00021917,3]
[349905348,1737489039029,-851.91,0.00021917,3]
[349905350,1737489039039,-300.0,0.00021917,3]
[349905352,1737489039048,-500.0,0.00021917,3]
[349905354,1737489039058,-162.11190198,0.00021917,3]
[349905356,1737489039069,-500.0,0.00021917,3]
[349905358,1737489039078,-683.79,0.00021917,3]
[349905360,1737489039088,-500.0,0.00021917,3]
[349905362,1737489039097,-505.83756815,0.00021917,3]
[349905364,1737489039107,-500.0,0.00021917,3]
[349905366,1737489039116,-500.0,0.00021917,3]
[349905368,1737489039126,-500.0,0.00021917,3]
[349905370,1737489039135,-745.03,0.00021917,3]
[349905372,1737489039145,-1005.4,0.00021917,3]
[349905374,1737489039154,-500.0,0.00021917,3]
[349905376,1737489039163,-500.0,0.00021917,3]
[349905378,1737489039173,-500.0,0.00021917,3]
[349905380,1737489039182,-500.0,0.00021917,3]
[349905382,1737489039191,-740.96,0.00021917,3]
[349905384,1737489039201,-500.0,0.00021917,3]
[349905386,1737489039211,-500.0,0.00021917,3]
[349905388,1737489039222,-189.98270487,0.00021917,3]
[349905390,1737489039231,-500.0,0.00021917,3]
[349905392,1737489039241,-500.0,0.00021917,3]
[349905394,1737489039251,-291.45772977,0.00021917,3]
[349905396,1737489039265,-208.54227023,0.00021917,3]
[349905399,1737489039276,-500.0,0.00021917,3]
[349905401,1737489039286,-500.0,0.00021917,3]
[349905403,1737489039295,-608.06401164,0.00021917,3]
[349905405,1737489039304,-566.07,0.00021917,3]
[349905407,1737489039314,-500.0,0.00021917,3]
[349905409,1737489039323,-510.64168644,0.00021917,3]
[349905410,1737489039332,-500.0,0.00021917,3]
[349905412,1737489039341,-326.50321265,0.00021917,3]
[349905416,1737489039353,-175.91400012,0.00021917,3]
[349905419,1737489039363,-500.0,0.00021917,3]
[349905421,1737489039372,-645.3,0.00021917,3]
[349905423,1737489039383,-500.0,0.00021917,3]
[349905425,1737489039391,-234.08888763,0.00021917,3]
[349905428,1737489039412,-417.72111237,0.00021917,3]
[349905430,1737489039422,-500.0,0.00021917,3]
[349905432,1737489039432,-500.0,0.00021917,3]
[349905434,1737489039441,-313.05517039,0.00021917,3]
[349905436,1737489039451,-500.0,0.00021917,3]
[349905438,1737489039461,-500.0,0.00021917,3]
[349905440,1737489039471,-500.0,0.00021917,3]
[349905442,1737489039481,-500.0,0.00021917,3]
[349905444,1737489039490,-500.0,0.00021917,3]
[349905446,1737489039500,-500.0,0.00021917,3]
[349905448,1737489039510,-500.0,0.00021917,3]
[349905450,1737489039519,-500.0,0.00021917,3]
[349905452,1737489039529,-500.0,0.00021917,3]
[349905454,1737489039539,-500.0,0.00021917,3]
[349905456,1737489039548,-500.0,0.00021917,3]
[349905458,1737489039558,-500.0,0.00021917,3]
[349905459,1737489039567,-399.38,0.00021917,3]
[349905460,1737489039577,-500.0,0.00021917,3]
[349905461,1737489039586,-1000.0,0.00021917,2]
[349905462,1737489039667,-500.0,0.00021917,3]
[349905463,1737489039678,-500.0,0.00021917,3]
[349905464,1737489039687,-500.0,0.00021917,3]
[349905465,1737489039697,-500.0,0.00021917,3]
[349905466,1737489039707,-500.0,0.00021917,3]
[349905467,1737489039718,-500.0,0.00021917,3]
[349905468,1737489039727,-506.34,0.00021917,3]
[349905469,1737489039737,-500.0,0.00021917,3]
[349905470,1737489039746,-500.0,0.00021917,3]
[349905471,1737489039756,-525.66111575,0.00021917,3]
[349905472,1737489039766,-863.44,0.00021917,3]
[349905473,1737489039774,-500.0,0.00021917,3]
[349905474,1737489039784,-1201.79,0.00021917,3]
[349905475,1737489039793,-500.0,0.00021917,3]
[349905476,1737489039801,-971.8,0.00021917,3]
[349905477,1737489039810,-500.0,0.00021917,3]
[349905478,1737489039819,-449.54577072,0.00021917,3]
[349905479,1737489039832,-50.45422928,0.00021917,3]
[349905480,1737489039842,-288.63080699,0.00021917,3]
[349905481,1737489039851,-500.0,0.00021917,3]
[349905483,1737489039861,-1069.54,0.00021917,3]
[349905485,1737489039875,-500.0,0.00021917,3]
[349905487,1737489039884,-500.0,0.00021917,3]
[349905488,1737489039894,-510.15447316,0.00021917,3]
[349905489,1737489039903,-497.37126,0.00021917,3]
[349905490,1737489039915,-500.0,0.00021917,3]
[349905491,1737489039924,-500.0,0.00021917,3]
[349905492,1737489039935,-42.75807086,0.00021917,3]
[349905493,1737489039947,-457.24192914,0.00021917,3]
[349905494,1737489039958,-500.0,0.00021917,3]
[349905495,1737489039968,-500.0,0.00021917,3]
[349905496,1737489039977,-500.0,0.00021917,3]
[349905497,1737489039987,-500.0,0.00021917,3]
[349905498,1737489039996,-500.0,0.00021917,3]
[349905499,1737489040006,-500.0,0.00021917,3]
[349905500,1737489040015,-500.0,0.00021917,3]
[349905501,1737489040025,-500.0,0.00021917,3]
[349905502,1737489040035,-1000.0,0.00021917,3]
[349905503,1737489040045,-726.88,0.00021917,3]
[349905504,1737489040054,-500.0,0.00021917,3]
[349905506,1737489040064,-500.0,0.00021917,3]
[349905508,1737489040073,-500.0,0.00021917,3]
[349905510,1737489040082,-500.0,0.00021917,3]
[349905511,1737489040091,-500.0,0.00021917,3]
[349905513,1737489040100,-500.0,0.00021917,3]
[349905514,1737489040110,-500.0,0.00021917,3]
[349905516,1737489040120,-500.0,0.00021917,3]
[349905517,1737489040132,-500.0,0.00021917,3]
[349905519,1737489040142,-245.76803523,0.00021917,3]
[349905521,1737489040151,-500.0,0.00021917,3]
[349905523,1737489040161,-500.0,0.00021917,3]
[349905524,1737489040170,-500.0,0.00021917,3]
[349905526,1737489040180,-500.0,0.00021917,3]
[349905527,1737489040189,-500.0,0.00021917,3]
[349905528,1737489040199,-500.0,0.00021917,3]
[349905529,1737489040209,-500.0,0.00021917,3]
[349905530,1737489040221,-500.0,0.00021917,3]
[349905531,1737489040231,-500.0,0.00021917,3]
[349905533,1737489040241,-500.0,0.00021917,3]
[349905535,1737489040251,-500.0,0.00021917,3]
[349905537,1737489040261,-500.0,0.00021917,3]
[349905539,1737489040272,-500.0,0.00021917,3]
[349905541,1737489040282,-500.0,0.00021917,3]
[349905542,1737489040292,-500.0,0.00021917,3]
[349905543,1737489040302,-500.0,0.00021917,3]
[349905544,1737489040312,-515.51,0.00021917,3]
[349905545,1737489040321,-500.0,0.00021917,3]
[349905546,1737489040330,-500.0,0.00021917,3]
[349905547,1737489040341,-500.0,0.00021917,3]
[349905548,1737489040350,-500.0,0.00021917,3]
[349905549,1737489040359,-500.0,0.00021917,3]
[349905550,1737489040369,-500.0,0.00021917,3]
[349905551,1737489040379,-748.32,0.00021917,3]
[349905552,1737489040388,-500.0,0.00021917,3]
[349905553,1737489040398,-500.0,0.00021917,3]
[349905554,1737489040407,-500.0,0.00021917,3]
[349905555,1737489040417,-500.0,0.00021917,3]
[349905556,1737489040426,-500.0,0.00021917,3]
[349905557,1737489040436,-500.0,0.00021917,3]
[349905558,1737489040446,-500.0,0.00021917,3]
[349905559,1737489040455,-509.44552675,0.00021917,3]
[349905560,1737489040466,-500.0,0.00021917,3]
[349905561,1737489040476,-500.0,0.00021917,3]
[349905562,1737489040486,-500.0,0.00021917,3]
[349905563,1737489040496,-500.0,0.00021917,3]
[349905564,1737489040505,-500.0,0.00021917,3]
[349905565,1737489040515,-500.0,0.00021917,3]
[349905566,1737489040524,-500.0,0.00021917,3]
[349905567,1737489040534,-631.04,0.00021917,3]
[349905568,1737489040543,-500.0,0.00021917,3]
[349905569,1737489040553,-500.0,0.00021917,3]
[349905570,1737489040562,-500.0,0.00021917,3]
[349905571,1737489040571,-500.0,0.00021917,3]
[349905572,1737489040581,-501.84400733,0.00021917,3]
[349905573,1737489040590,-745.04,0.00021917,3]
[349905574,1737489040599,-798.43,0.00021917,3]
[349905575,1737489040609,-500.0,0.00021917,3]
[349905576,1737489040618,-500.0,0.00021917,3]
[349905577,1737489040627,-500.0,0.00021917,3]
[349905578,1737489040637,-502.20546571,0.00021917,3]
[349905579,1737489040646,-609.79018352,0.00021917,3]
[349905580,1737489040656,-501.01939517,0.00021917,3]
[349905581,1737489040666,-500.0,0.00021917,3]
[349905582,1737489040675,-500.0,0.00021917,3]
[349905583,1737489040684,-500.0,0.00021917,3]
[349905584,1737489040694,-500.0,0.00021917,3]
[349905585,1737489040704,-502.3404222,0.00021917,3]
[349905586,1737489040715,-500.0,0.00021917,3]
[349905587,1737489040725,-500.0,0.00021917,3]
[349905588,1737489040735,-2169.35,0.00021917,3]
[349905589,1737489040744,-500.0,0.00021917,3]
[349905590,1737489040753,-500.0,0.00021917,3]
[349905591,1737489040762,-830.16,0.00021917,3]
[349905592,1737489040772,-5345.73,0.00021917,3]
[349905593,1737489040781,-5345.73,0.00021917,3]
[349905594,1737489040791,-5345.73,0.00021917,3]
[349905595,1737489040800,-5345.73,0.00021917,3]
[349905596,1737489040810,-5345.73,0.00021917,3]
[349905597,1737489040819,-500.0,0.00021917,3]
[349905598,1737489040829,-5345.73,0.00021917,3]
[349905599,1737489040839,-5345.73,0.00021917,3]
[349905600,1737489040848,-500.0,0.00021917,3]
[349905601,1737489040857,-500.0,0.00021917,3]
[349905602,1737489040867,-5345.73,0.00021917,3]
[349905603,1737489040879,-5345.73,0.00021917,3]
[349905604,1737489040889,-5345.73,0.00021917,3]
[349905605,1737489040899,-5345.73,0.00021917,3]
[349905606,1737489040908,-5345.73,0.00021917,3]
[349905607,1737489040917,-500.0,0.00021917,3]
[349905608,1737489040930,-5345.73,0.00021917,3]
[349905609,1737489040940,-5345.73,0.00021917,3]
[349905610,1737489040949,-5345.73,0.00021917,3]
[349905611,1737489040961,-504.18247364,0.00021917,3]
[349905612,1737489040973,-5345.73,0.00021917,3]
[349905613,1737489040983,-5345.73,0.00021917,3]
[349905614,1737489040992,-5345.73,0.00021917,3]
[349905615,1737489041002,-5345.73,0.00021917,3]
[349905616,1737489041012,-5345.73,0.00021917,3]
[349905617,1737489041022,-5345.73,0.00021917,3]
[349905618,1737489041032,-2669.04,0.00021917,3]
[349905619,1737489041041,-5345.73,0.00021917,3]
[349905620,1737489041051,-500.0,0.00021917,3]
[349905621,1737489041060,-5345.73,0.00021917,3]
[349905622,1737489041070,-500.0,0.00021917,3]
[349905623,1737489041080,-5345.73939828,0.00021917,3]
[349905624,1737489041089,-500.0,0.00021917,3]
[349905625,1737489041099,-500.0,0.00021917,3]
[349905626,1737489041108,-481.78787578,0.00021917,3]
[349905627,1737489041118,-500.0,0.00021917,3]
[349905628,1737489041127,-758.42903725,0.00021917,2]
[349905629,1737489041378,-440.0144746,0.00021917,2]
[349905630,1737489041390,-186.38648815,0.00021917,2]
[349905631,1737489041399,-500.0,0.00021917,3]
[349905632,1737489041408,-550.92970018,0.00021917,3]
[349905633,1737489041418,-500.0,0.00021917,3]
[349905634,1737489041428,-200.0,0.00021917,3]
[349905635,1737489041440,-500.0,0.00021917,3]
[349905636,1737489041453,-500.0,0.00021917,3]
[349905637,1737489041468,-500.0,0.00021917,3]
[349905638,1737489041478,-500.0,0.00021917,3]
[349905639,1737489041487,-501.09665509,0.00021917,3]
[349905640,1737489041497,-500.0,0.00021917,3]
[349905641,1737489041507,-302.97594258,0.00021917,3]
[349905642,1737489041520,-643.95405742,0.00021917,3]
[349905643,1737489041530,-500.0,0.00021917,3]
[349905644,1737489041540,-500.0,0.00021917,3]
[349905645,1737489041550,-500.0,0.00021917,3]
[349905646,1737489041560,-480.91452126,0.00021917,3]
[349905647,1737489041572,-19.08547874,0.00021917,3]
[349905648,1737489041581,-500.0,0.00021917,3]
[349905649,1737489041591,-500.0,0.00021917,3]
[349905650,1737489041601,-248.71452126,0.00021917,3]
[349905651,1737489041612,-568.14547874,0.00021917,3]
[349905652,1737489041622,-1041.81798967,0.00021917,3]
[349905653,1737489041634,-1624.6812303,0.00021917,3]
[349905654,1737489041647,-1770.63105612,0.00021917,3]
[349905656,1737489042786,-1052.95102656,0.00021917,3]
[349905657,1737489042798,-5366.76869735,0.00021917,3]
[349905658,1737489042807,-500.0,0.00021917,3]
[349905659,1737489042818,-500.0,0.00021917,3]
[349905660,1737489042828,-500.0,0.00021917,3]
[349905661,1737489042837,-500.0,0.00021917,3]
[349905662,1737489042847,-501.18259423,0.00021917,3]
[349905663,1737489042856,-500.0,0.00021917,3]
[349905664,1737489042866,-500.0,0.00021917,3]
[349905665,1737489042879,-500.0,0.00021917,3]
[349905666,1737489042889,-500.0,0.00021917,3]
[349905667,1737489042900,-500.0,0.00021917,3]
[349905668,1737489042909,-500.0,0.00021917,3]
[349905669,1737489042919,-500.0,0.00021917,3]
[349905670,1737489042928,-395.82389358,0.00021917,3]
[349905672,1737489042941,-104.17610642,0.00021917,3]
[349905673,1737489042950,-500.0,0.00021917,3]
[349905674,1737489042960,-500.0,0.00021917,3]
[349905675,1737489042973,-500.0,0.00021917,3]
[349905676,1737489042984,-3156.37,0.00021917,3]
[349905678,1737489042993,-1229.39052001,0.00021917,3]
[349905679,1737489043005,-344.66810116,0.00021917,3]
[349905680,1737489044146,2884.96488127,0.00023749,120]
[349905694,1737489045829,-455.4460002,0.00021,2]
[349905696,1737489046007,-365.5539998,0.00021,2]
[349905697,1737489046016,-1778.50137883,0.00021917,3]
[349905698,1737489046026,-1176.83,0.00021917,3]
[349905699,1737489046036,-500.0,0.00021917,3]
[349905700,1737489046046,-500.0,0.00021917,3]
[349905701,1737489046055,-517.76,0.00021917,3]
[349905702,1737489046065,-502.99817291,0.00021917,3]
[349905703,1737489046074,-500.0,0.00021917,2]
[349905704,1737489046083,-500.0,0.00021917,3]
[349905705,1737489046093,-500.0,0.00021917,3]
[349905706,1737489046102,-433.77233369,0.00021917,3]
[349905707,1737489046112,-500.0,0.00021917,3]
[349905708,1737489046121,-500.0,0.00021917,3]
[349905709,1737489046130,-500.0,0.00021917,3]
[349905710,1737489046140,-500.0,0.00021917,3]
[349905711,1737489046237,-500.0,0.00021917,3]
[349905712,1737489046247,-501.91427403,0.00021917,3]
[349905713,1737489046256,-2357.33,0.00021917,3]
[349905714,1737489046266,-500.0,0.00021917,3]
[349905715,1737489046276,-500.0,0.00021917,3]
[349905716,1737489046286,-500.0,0.00021917,3]
[349905717,1737489046295,-591.53,0.00021917,3]
[349905718,1737489046305,-568.19609609,0.00021917,3]